Cogmind - Beta 16 @@@ ROGUE MODE // 2025.10.25 @ 21:10:08 Player: Anting Result: Destroyed by S-27 Virus with Autogun Performance ------------- Evolutions (6) 3000 Regions Visited (26) 5200 Robots Destroyed (396) 1980 Value Destroyed (20936) 20936 Prototype IDs (45) 900 Alien Tech Used (0) 0 Bonus (11197) 11197 TOTAL SCORE: 43213 Bonus ------- Triggered High Security 500 High Alert Combat Kills 5665 Follower Combat Kills 1645 Entered Garrisons 400 Entered DSFs 500 Met Data Miner 300 Acquired ECA 300 Met Warlord at Base 500 MAIN.C Attacked Warlord 500 Warlord Defense Kills 2982 Friendly Fire -2095 Cogmind --------- Core Integrity 0/1150 Matter 184/300 Energy 99/100 System Corruption 26% Temperature Cool (0) Movement Core (50) Location -4/Extension Parts ------- > --- POWER (2) -------- (None) > --- PROPULSION (4) --- (None) > --- UTILITY (9) ------ (None) > --- WEAPON (4) ------- (None) > --- INVENTORY (5) ---- Vortex Chain Reactor Compact Wheel Experimental Energy Well (600) High-capacity Matter Pod (200) Peak State ------------ > --- POWER ------------ Antimatter Reactor Antimatter Reactor > --- PROPULSION ------- Heavy Treads Armored Heavy Treads > --- UTILITY ---------- Advanced Heat Sink Advanced Heat Sink Huge Storage Unit Advanced Sensor Array Advanced Signal Interpreter Experimental Core Analyzer Improved Transmission Jammer Layered Heavy Armor Plating > --- WEAPON ----------- Enhanced Nova Cannon Hypervelocity Railgun Hypervelocity Gauss Cannon Linear Accelerator > --- INVENTORY -------- Vortex Chain Reactor Heavy Treads Heavy Treads Energy Well Experimental Energy Well High-capacity Matter Pod Long-range Terrain Scanner Advanced Particle Charger Experimental Cloaking Device Improved Medium Armor Plating Advanced Remote Shield Advanced Hacking Suite Long-range Proton Cannon Neutron Cannon Neutron Cannon Vortex Driver Enhanced Coil Gun Heavy Shock Bomb Launcher Smartbomb Launcher Improved Plasma Cutter RU-N14's Throwing Claymores v3 [Rating: 139] Favorites ----------- Power Antimatter Reactor Engine Improved Ion Engine Power Core Micro Fission Core Reactor Antimatter Reactor Propulsion Light Treads Treads Light Treads Leg Aluminum Leg Utility Huge Storage Unit Device Advanced Heat Sink Storage Huge Storage Unit Processor Improved Signal Interpreter Hackware Makeshift Hacking Suite Protection Layered Heavy Armor Plating Weapon Gauss Rifle Energy Gun Dispersion Rifle Energy Cannon Neutron Cannon Ballistic Gun Gauss Rifle Ballistic Cannon Linear Accelerator Launcher Heavy Shock Bomb Launcher Special Weapon Remote Datajack Build | -11 -10 -10 -10 -9 -8 -8 -8 -8 -7 -7 -7 -7 -6 -6 -6 -6 -6 -5 -5 -5 -5 -4 -4 -4 -4 -4 ------- Run | Yrd Mat Min Exi Min Mat Gar Mat Gar Fac Low Low Dat Pro Fac Was Fac DSF Fac Upp Upp War Pro Fac Was Fac Ext Slots Evolved 12 | . . . . . 4 . . . 2 . . . . 2 . . . 2 . . . . 2 . . . Power 1 | . . . . . . . . . . . . . . . . . . 1 . . . . . . . . Propulsion 2 | . . . . . 1 . . . 1 . . . . . . . . . . . . . . . . . Utility 7 | . . . . . 2 . . . 1 . . . . 2 . . . 1 . . . . 1 . . . Weapon 2 | . . . . . 1 . . . . . . . . . . . . . . . . . 1 . . . Parts Attached 205 | 7 6 4 1 7 18 9 1 20 9 2 5 . 1 3 6 . . 29 2 3 13 . 13 7 18 21 Power 20 | 1 1 1 . 2 2 . . 1 . . 1 . . . 1 . . 1 . . 2 . 2 1 2 2 Engine 6 | 1 . 1 . 2 1 . . 1 . . . . . . . . . . . . . . . . . . Core 6 | . 1 . . . 1 . . . . . 1 . . . . . . 1 . . 1 . . . . 1 Reactor 8 | . . . . . . . . . . . . . . . 1 . . . . . 1 . 2 1 2 1 Propulsion 42 | 2 2 1 . 2 3 4 . 9 2 . 2 . . . 2 . . 2 . . . . 2 2 2 5 Treads 36 | . . . . 2 3 4 . 9 2 . 2 . . . 2 . . 2 . . . . 2 2 2 4 Leg 6 | 2 2 1 . . . . . . . . . . . . . . . . . . . . . . . 1 Wheel . | . . . . . . . . . . . . . . . . . . . . . . . . . . . Hover . | . . . . . . . . . . . . . . . . . . . . . . . . . . . Flight . | . . . . . . . . . . . . . . . . . . . . . . . . . . . Utility 80 | 2 2 1 1 1 5 2 1 4 6 1 1 . 1 3 1 . . 14 1 1 7 . 6 2 10 7 Device 42 | 1 1 1 . . 3 1 . 2 3 1 1 . . 1 . . . 10 1 1 4 . 3 1 4 3 Storage 7 | 1 1 . 1 . 1 . . . . . . . . . . . . 1 . . 2 . . . . . Processor 5 | . . . . . . . . . 1 . . . . . . . . . . . 1 . 2 . . 1 Hackware 6 | . . . . . . . . . 1 . . . 1 2 . . . . . . . . . 1 1 . Protection 20 | . . . . 1 1 1 1 2 1 . . . . . 1 . . 3 . . . . 1 . 5 3 Artifact . | . . . . . . . . . . . . . . . . . . . . . . . . . . . Weapon 63 | 2 1 1 . 2 8 3 . 6 1 1 1 . . . 2 . . 12 1 2 4 . 3 2 4 7 Energy Gun 2 | . . . . . . . . . . . . . . . . . . . . . . . . . . 2 Energy Cannon 15 | . . . . . 1 . . . 1 . 1 . . . . . . 5 . . 2 . 3 1 1 . Ballistic Gun 30 | 2 1 1 . 2 6 2 . 6 . 1 . . . . 2 . . 4 1 . . . . 1 . 1 Ballistic Cannon 7 | . . . . . . . . . . . . . . . . . . 1 . 1 1 . . . 1 3 Launcher 5 | . . . . . 1 1 . . . . . . . . . . . 2 . 1 . . . . . . Special Weapon 4 | . . . . . . . . . . . . . . . . . . . . . 1 . . . 2 1 Impact Weapon . | . . . . . . . . . . . . . . . . . . . . . . . . . . . Slashing Weapon . | . . . . . . . . . . . . . . . . . . . . . . . . . . . Piercing Weapon . | . . . . . . . . . . . . . . . . . . . . . . . . . . . Special Melee Weapon . | . . . . . . . . . . . . . . . . . . . . . . . . . . . Unidentified Prototypes 11 | . . . . . 1 . . . . . . . . . 1 . . 1 . . 8 . . . . . Corrupted Parts 1 | . . . . . . . . . . . . . . . . . . . . . . . . . 1 . System Corruption 10 | . . . . . . . . . . . . . . . . . . . . . . . . . 10 . Parts Lost 70 | . 3 2 . 3 . . . 5 4 . 1 . 1 . . . . 6 . . 3 . 1 . 15 26 Power 9 | . 1 1 . 1 . . . . . . . . . . . . . . . . 1 . . . 1 4 Propulsion 12 | . 1 . . . . . . . 2 . 1 . . . . . . 2 . . . . 1 . 2 3 Utility 29 | . 1 . . . . . . 2 1 . . . 1 . . . . 3 . . 2 . . . 8 11 Weapon 20 | . . 1 . 2 . . . 3 1 . . . . . . . . 1 . . . . . . 4 8 Highest Loss Streak 15 | . 2 2 . 3 . . . 2 3 . 1 . 1 . . . . 2 . . 3 . 1 . 6 15 To Critical Strikes 1 | . . . . . . . . . . . . . . . . . . . . . . . . . . 1 Average Backups 20 | 3 7 14 15 18 20 23 23 23 24 23 22 23 22 20 20 20 20 19 20 21 21 21 21 21 20 17 Power 1 | . 1 1 1 . 1 . 1 1 1 1 . . . . . 1 1 1 1 1 1 1 1 1 1 1 Propulsion 4 | 1 3 6 7 7 5 6 7 8 9 8 7 7 7 7 5 4 3 2 1 1 1 1 1 2 2 3 Utility 6 | . 1 3 3 6 7 7 7 6 6 6 6 7 6 5 4 4 4 6 8 8 6 8 9 9 8 7 Weapon 7 | . 1 3 4 4 4 8 8 6 7 7 7 8 8 8 8 10 10 9 10 10 11 11 8 8 7 3 Tool/Special . | . . . . . . . . . . . . . . . . . . . . . . . . . . . Unused Backups 40 | . . 1 . 1 6 4 . . 1 1 . . . . 7 . 1 5 . . 1 . . 4 2 6 Power 2 | . . . . . . . . . . . . . . . . . . . . . . . . . . 2 Propulsion 15 | . . . . . 1 . . . . . . . . . 7 . 1 . . . . . . 4 1 1 Utility 14 | . . 1 . 1 3 2 . . . 1 . . . . . . . 2 . . . . . . 1 3 Weapon 9 | . . . . . 2 2 . . 1 . . . . . . . . 3 . . 1 . . . . . Tool/Special . | . . . . . . . . . . . . . . . . . . . . . . . . . . . Average Slot Usage (%) 88 | . 96 99 100 100 97 99 100 92 91 92 91 73 91 87 82 80 80 80 76 80 84 62 79 83 82 86 Engine 4 | . 3 12 14 14 8 9 9 8 7 7 5 . . . . . . . . . . . . . . . Core 2 | . 10 1 . . . . . . . . 1 7 7 6 1 . . 4 5 5 8 . . . . 4 Reactor 3 | . . . . . . . . . . . . . . . 4 6 6 5 5 5 2 5 9 10 9 5 Treads 15 | . . . . 5 26 27 27 26 30 30 30 30 30 26 15 13 13 10 11 11 11 11 9 10 9 12 Leg 4 | . 27 28 28 22 . . . . . . . . . . . . . . . . . . . . . . Device 14 | . 11 14 14 10 16 18 18 12 10 7 6 7 6 11 6 6 6 17 17 21 30 11 18 20 15 21 Storage 7 | . 14 14 14 14 9 9 9 9 7 7 7 7 7 6 6 6 6 5 5 5 5 5 5 5 5 4 Processor 4 | . . . . . . . . . 3 7 7 7 7 6 6 6 6 2 . . 1 5 9 10 10 12 Hackware 1 | . . . . . . . . . . . . . . 3 13 13 13 6 5 5 3 . . . 3 . Protection 5 | . . . . 3 9 9 9 9 6 7 7 7 7 6 6 6 6 5 5 5 1 5 5 5 6 4 Energy Cannon 1 | . . . . . 1 2 . . . . 2 1 3 . 3 . . 3 . . . . 2 4 4 5 Ballistic Gun 16 | . 28 27 28 28 25 23 27 25 22 23 19 3 16 20 15 20 17 9 10 10 9 3 5 5 3 6 Ballistic Cannon 2 | . . . . . . . . . . . . . . . . . . 2 5 . 5 9 10 10 9 3 Peak Build Rating 139 | 7 10 10 9 13 28 34 32 33 40 43 46 46 47 54 83 79 79 108 109 107 119 104 134 139 139 124 Average Rating 68 | 5 8 8 8 10 22 31 30 29 35 41 44 35 45 51 73 79 79 99 104 105 105 103 128 137 130 113 On Entrance 58 | . 7 10 8 9 13 27 32 29 28 39 43 46 46 46 54 79 79 79 106 104 107 102 104 132 138 124 Avg Prop Armor Cover (%) 7 | . . . . . . . . . . . . . . . . . 7 . . . . . . . . . Naked Turns 39 | . . . . . . . . . . . . . . . . . . . . . . . . . . 39 Heaviest Build 178 | 15 29 29 47 52 102 109 110 116 119 121 124 124 124 121 134 130 133 152 148 151 163 147 174 178 176 167 Greatest Support 140 | 20 20 20 20 40 60 60 60 60 82 82 82 82 82 82 140 140 140 140 140 140 140 140 140 140 140 140 Greatest Overweight (x) 2 | 1 1 1 2 2 1 1 1 2 1 1 1 1 1 1 1 . 1 1 1 1 1 1 1 1 2 1 Average Overweight (x) . | . . 1 1 1 . 1 1 1 1 1 1 1 1 1 . . . . 1 . . . 1 1 1 . Largest Inventory Capacity 25 | 8 15 15 20 20 25 25 25 25 25 25 25 25 25 25 25 25 25 25 25 25 25 25 25 25 25 25 Average Capacity 23 | 7 11 15 17 20 21 25 25 25 25 25 25 25 25 25 25 25 25 25 25 25 25 25 25 25 25 24 Most Carried 25 | 4 10 15 17 20 25 25 25 25 25 25 25 25 25 23 25 25 25 25 23 25 25 25 25 25 25 23 Average Carried 22 | 3 7 14 15 18 20 24 25 24 24 24 24 25 24 22 24 25 25 24 23 24 24 24 24 24 23 18 Final Capacity 25 | 8 15 15 20 20 25 25 25 25 25 25 25 25 25 25 25 25 25 25 25 25 25 25 25 25 25 5 Final Carried 25 | 4 10 15 17 19 25 25 25 25 25 25 25 25 24 22 25 25 25 23 23 25 25 25 25 25 15 5 Class Distribution -------------------- 27% | Scavenger-Tank 20% | Tank 13% | Skirmisher 12% | Mutant 9% | Scavenger-Skirmisher 6% | Hacker-Tank 6% | Scavenger-Mutant 4% | Infiltrator-Tank Dominant Class ---------------- Scavenger-Mutant | -10/Materials Mutant | -10/Mines Mutant | -10/Exiles Mutant | -9/Mines Scavenger-Tank | -8/Materials Scavenger-Tank | -8/Garrison Scavenger-Tank | -8/Materials Scavenger-Tank | -8/Garrison Scavenger-Skirmisher | -7/Factory Scavenger-Skirmisher | -7/Lower Caves Skirmisher | -7/Lower Caves Mutant | -7/Data Miner Skirmisher | -6/Proximity Caves Tank | -6/Factory Hacker-Tank | -6/Waste Hacker-Tank | -6/Factory Hacker-Tank | -6/DSF Scavenger-Tank | -5/Factory Tank | -5/Upper Caves Infiltrator-Tank | -5/Upper Caves Scavenger-Tank | -5/Warlord Tank | -4/Proximity Caves Skirmisher | -4/Factory Tank | -4/Waste Tank | -4/Factory Scavenger-Tank | -4/Extension Resources | -11 -10 -10 -10 -9 -8 -8 -8 -8 -7 -7 -7 -7 -6 -6 -6 -6 -6 -5 -5 -5 -5 -4 -4 -4 -4 -4 ----------- Run | Yrd Mat Min Exi Min Mat Gar Mat Gar Fac Low Low Dat Pro Fac Was Fac DSF Fac Upp Upp War Pro Fac Was Fac Ext Matter Collected 14221 | 330 479 244 20 48 642 880 59 1680 443 236 367 . 166 . 1009 . 245 1311 167 78 995 242 662 934 1682 1302 Remotely 18 | . . . . . . . . . . . . . . . . . . 18 . . . . . . . . Salvage Created 21790 | 116 671 176 . 48 856 1163 59 1696 505 149 244 . 307 . 1943 . 155 1959 200 81 818 203 1196 1930 5262 2053 Parts 918 | 9 43 14 . 2 49 66 . 96 28 6 10 . 10 . 41 . 3 104 6 6 16 9 58 34 229 79 Haulers Intercepted 9 | . 2 . . . 3 . . . . . . . . . . . . 2 . . . . . . 2 . Recyclers Shooed 7 | . 2 1 . . . . . . . . . . . . . . . 1 . . . . 1 . 2 . Parts Field Recycled . | . . . . . . . . . . . . . . . . . . . . . . . . . . . Retrieved Matter . | . . . . . . . . . . . . . . . . . . . . . . . . . . . Parts Self-Destructed 29 | . . . . . . . . . . 2 4 . 7 . . . . . 6 3 . 7 . . . . Prevented 6 | . . . . . . . . . . . 4 . . . . . . . . 2 . . . . . . Parts Restored . | . . . . . . . . . . . . . . . . . . . . . . . . . . . Kills | -11 -10 -10 -10 -9 -8 -8 -8 -8 -7 -7 -7 -7 -6 -6 -6 -6 -6 -5 -5 -5 -5 -4 -4 -4 -4 -4 ------- Run | Yrd Mat Min Exi Min Mat Gar Mat Gar Fac Low Low Dat Pro Fac Was Fac DSF Fac Upp Upp War Pro Fac Was Fac Ext Combat Hostiles Destroyed 325 | . 9 5 . 1 16 26 1 37 10 1 1 . 13 . 6 . 19 31 4 3 26 7 17 6 61 25 Melee 1 | . . . . . . . . . . . . . . . . . . . . . . . . . . 1 Guns 134 | . 9 5 . 1 15 21 1 35 10 1 1 . 2 . 3 . 3 4 2 . . 2 3 4 5 7 Cannons 61 | . . . . . 1 . . . . . . . . . 2 . . 17 2 . 2 2 6 2 16 11 AOE 106 | . . . . . . 5 . 1 . . . . 11 . . . 16 6 . 3 24 3 3 . 28 6 Classes Destroyed 26 | 2 5 2 . . 2 3 . 1 . 1 . . 1 . 2 . 1 2 . . 3 . . . . 1 Worker 17 | . . 1 . . 1 . . . . . . . . . . . . . . . . . 1 . 12 2 Builder 22 | . . . . . . . . . . . . . . . . . . 4 . . . . . . 16 2 Tunneler 8 | 3 3 . . . . . . . . . . . . . . . . 1 . . . . . . 1 . Hauler 9 | . 2 . . . 3 . . . . . . . . . . . . 2 . . . . . . 2 . Recycler 9 | 1 2 . . . 1 . . . . . . . . . . . . . . . . . . . 2 3 Mechanic 6 | . 1 . . . . . . . . . . . . . . . . . . . 2 . . . 3 . Operator 1 | . . . . . 1 . . . . . . . . . . . . . . . . . . . . . Drone 4 | . . . . . . . . . . . . . 2 . . . . . . . . 2 . . . . Watcher 6 | . 3 . . . 1 . . . . . . . . . . . . . . . . . 1 . 1 . Swarmer 36 | . 3 3 . . 7 . . 3 . . . . 3 . . . . 5 . 3 . 1 . . 4 4 Cutter 2 | . . . . . . . . 2 . . . . . . . . . . . . . . . . . . Saboteur 1 | . . . . . . . . . . . . . . . . . . . . . . . . . . 1 Grunt 117 | . 6 . . 1 4 10 . 12 9 . . . 7 . . . 1 4 4 . 22 1 4 . 28 4 Brawler 14 | . . . . . . 1 . 3 . . . . . . . . . 1 . . . . . . 4 5 Duelist 8 | . . . . . . 4 . 1 . . . . . . . . . . . . . . . . 3 . Protector 3 | . . . . . . . . . . . . . . . . . . . . . 1 . . . 1 1 Sentry 34 | . . 2 . . 4 5 1 7 . 1 1 . . . . . . 2 . . . 1 2 . 4 4 Demolisher 2 | . . . . . . . . . . . . . . . . . 1 . . . . . . . . 1 Hunter 27 | . . . . . 1 . . 1 . . . . 1 . . . . 7 . . . 2 4 . 11 . Programmer 40 | . . . . . . 5 . 8 1 . . . . . . . . 11 . . 1 . 7 . 6 1 Heavy 1 | . . . . . . . . . . . . . . . . . . 1 . . . . . . . . Behemoth 2 | . . . . . . . . . . . . . . . . . . . . . 1 . . . . 1 Compactor 12 | . . . . . . . . . . . . . . . 6 . . . . . . . . 6 . . Executioner 1 | . . . . . . . . . . . . . . . . . . . . . 1 . . . . . Samaritan 6 | . . . . . . . . . . 2 4 . . . . . . . . . . . . . . . Assembled 17 | . . . . . . . . . . . . . . . . . 17 . . . . . . . . . Surgeon 1 | . . . . . . . . . . . . . . . . . . . . . . . . . 1 . Wasp 3 | . . . . . . . . . . . . . . . 2 . . . . . . . . 1 . . Thug 5 | . . . . . . . . . . . . . . . 1 . . . . . . . . . 2 2 Savage 1 | . . . . . . . . . . . . . . . . . . . . . . . . . . 1 Martyr 3 | . . . . . . . . . . . . . . . 1 . . . . . . . . 2 . . Guerrilla 1 | . . . . . . 1 . . . . . . . . . . . . . . . . . . . . Best Kill Streak 28 | 3 4 3 . 1 7 6 1 4 4 1 1 . 4 . 2 . 16 8 4 3 14 3 4 1 28 7 Combat Bots Only 16 | . 4 3 . 1 5 6 1 4 4 1 1 . 4 . 2 . 16 7 4 3 12 3 4 1 14 5 Max Kills in Single Turn 6 | 1 1 1 . 1 1 2 1 2 1 1 1 . 2 . 1 . 6 2 1 2 3 2 2 1 4 3 Gunslinging 1 | . . . . . . . . 1 . . . . . . . . . . . . . . . . . . Exploded 6 | . . . . . . 2 . 1 . . . . 2 . . . 6 2 . 2 3 2 2 . 2 3 Melee 1 | . . . . . . . . . . . . . . . . . . . . . . . . . . 1 Uniques/NPCs Destroyed . | . . . . . . . . . . . . . . . . . . . . . . . . . . . Combat | -11 -10 -10 -10 -9 -8 -8 -8 -8 -7 -7 -7 -7 -6 -6 -6 -6 -6 -5 -5 -5 -5 -4 -4 -4 -4 -4 -------- Run | Yrd Mat Min Exi Min Mat Gar Mat Gar Fac Low Low Dat Pro Fac Was Fac DSF Fac Upp Upp War Pro Fac Was Fac Ext Hostile Shots Fired 1434 | . 69 31 . 26 46 57 4 181 71 30 63 . 29 . . . 21 221 17 8 17 16 52 . 260 215 Missed 391 | . 16 7 . 6 15 20 . 55 21 14 28 . 8 . . . 3 55 5 3 7 5 13 . 72 38 Hits 1043 | . 53 24 . 20 31 37 4 126 50 16 35 . 21 . . . 18 166 12 5 10 11 39 . 188 177 Melee 37 | . . . . . . . . 8 . . . . . . . . . 1 . . . . . . 15 13 Projectile 1006 | . 53 24 . 20 31 37 4 118 50 16 35 . 21 . . . 18 165 12 5 10 11 39 . 173 164 AOE 30 | . . . . 22 . . . . . . . . . . . . 2 2 . . . . . . 1 3 Critical Strikes 43 | . . 1 . . . 2 . 7 2 . . . . . . . . 6 1 . . . 1 . 12 11 Part Disruptions 3 | . . . . . . . . . . . . . . . . . 2 1 . . . . . . . . Damage Taken 20420 | . 602 277 . 767 357 416 58 1641 664 154 314 . 378 . . . 334 3865 229 80 410 214 827 . 4514 4319 Core 1880 | . 98 30 . 103 50 41 . 100 41 . . . 18 . . . 12 186 . . 44 . 18 . 246 893 Absorbed by Shields 550 | . . . . . 19 139 . 228 144 . . . . . . . . . . . . . . . . 20 Reduced by Siege Mode 402 | . . . . . . . . . . . . . . . . . . 21 10 . . 14 29 . 235 93 Regen/Repaired (Parts) 823 | . . . . . 135 . . . . . . . . . 109 . 180 13 . . 178 . . 134 74 . Core Remaining (%) 73 | 100 . . . 7 . . . 65 . . . . 91 . . . 98 . . . . 77 . . . . Volleys Fired 1010 | 10 70 18 . 10 51 67 3 116 32 12 21 . 26 . 83 . 13 118 5 2 33 10 51 38 152 69 Largest 4 | 2 2 2 . 2 3 3 3 3 3 3 3 . 3 . 3 . 3 3 3 1 2 3 4 4 4 4 Hottest 355 | 40 40 40 . 40 75 78 75 75 79 84 84 . 121 . 121 . 84 185 114 46 105 145 240 250 277 355 Shots Fired 2107 | 20 140 36 . 20 133 156 8 276 95 39 61 . 48 . 129 . 29 243 15 2 36 23 87 90 262 159 Gun 1325 | 20 140 36 . 20 126 141 8 263 95 39 58 . 25 . 94 . 25 101 10 . . 7 15 33 30 39 Cannon 611 | . . . . . 7 8 . 7 . . 3 . 8 . 35 . . 131 5 . 12 12 57 57 170 99 Launcher 151 | . . . . . . 7 . 6 . . . . 15 . . . 4 11 . 2 24 4 15 . 57 6 Special 20 | . . . . . . . . . . . . . . . . . . . . . . . . . 5 15 Kinetic 1597 | 20 140 36 . 20 126 141 8 263 95 39 58 . 25 . 94 . 25 128 15 . 12 19 49 75 120 89 Thermal 250 | . . . . . . . . . . . 3 . 8 . 35 . . 76 . . . . 14 15 50 49 Explosive 76 | . . . . . . 7 . 6 . . . . 15 . . . 4 . . . 24 4 . . 16 . Electromagnetic 169 | . . . . . 7 8 . 7 . . . . . . . . . 39 . 2 . . 24 . 76 6 Robot Hit Streak 26 | 6 10 5 . 5 7 21 13 20 10 7 8 . 3 . 10 . 3 13 7 . 8 10 11 19 12 26 Robot Miss Streak 11 | 3 5 3 . 1 6 2 . 7 4 5 2 . 11 . 3 . 3 4 2 . 1 2 3 3 4 4 Penetration Max 2 | . . . . . . . . . 1 . 1 . . . 2 . 1 1 1 . . . 1 1 2 2 Secondary Targets 19 | . 1 . . . 2 6 . 5 4 . . . . . 1 . . . . . . . . . . . Max Gunslinging Chain 1 | . 1 . . . 1 1 . 1 1 . . . . . 1 . . . . . . . . . . . Shots Hit Robots 1177 | 11 77 23 . 15 76 85 7 166 60 19 38 . 12 . 91 . 15 130 9 . 6 12 32 59 121 113 Core Hits 839 | 4 33 12 . 6 40 50 2 71 23 9 15 . 23 . 34 . 35 62 6 3 98 13 30 18 190 62 Critical Kills 38 | . . . . . . . . . . . . . . . 7 . . . . . . 3 5 7 3 13 Critical Parts Destroyed 47 | . . . . . 1 . . . . 1 . . . . 8 . . 1 . . . 3 2 2 13 16 Critical Strikes 122 | . . . . . 2 . . 1 . 1 . . . . 22 . . 3 . . . 7 7 24 21 34 Meltdown 1 | . . . . . . . . . . . . . . . 1 . . . . . . . . . . . Destroy 112 | . . . . . 1 . . 1 . 1 . . . . 21 . . 1 . . . 6 7 24 17 33 Blast 7 | . . . . . . . . . . . . . . . . . . 2 . . . 1 . . 3 1 Corrupt 1 | . . . . . 1 . . . . . . . . . . . . . . . . . . . . . Sever 1 | . . . . . . . . . . . . . . . . . . . . . . . . . 1 . Melee Attacks . | . . . . . . . . . . . . . . . . . . . . . . . . . . . Impact . | . . . . . . . . . . . . . . . . . . . . . . . . . . . Slashing . | . . . . . . . . . . . . . . . . . . . . . . . . . . . Piercing . | . . . . . . . . . . . . . . . . . . . . . . . . . . . Sneak Attacks . | . . . . . . . . . . . . . . . . . . . . . . . . . . . Combat Hostiles . | . . . . . . . . . . . . . . . . . . . . . . . . . . . Follow-up Attacks . | . . . . . . . . . . . . . . . . . . . . . . . . . . . Damage Inflicted 46894 | 145 1003 277 . 175 1087 2091 122 3083 1238 354 804 . 1581 . 1992 . 1519 4900 389 128 6480 776 1818 1126 12044 3762 Guns 14862 | 145 988 243 . 158 912 1557 122 2877 1238 354 804 . 76 . 1341 . 406 1662 202 . . 26 186 228 812 525 Cannons 11420 | . . . . . 167 . . 132 . . . . 27 . 651 . . 2414 187 . 262 236 889 898 3143 2414 Explosions 20186 | . . . . . . 534 . 74 . . . . 1478 . . . 1113 793 . 128 6218 514 664 . 7847 823 Melee . | . . . . . . . . . . . . . . . . . . . . . . . . . . . Ramming 261 | . 15 34 . 17 8 . . . . . . . . . . . . 31 . . . . 79 . 77 . Kinetic 19755 | 145 988 243 . 158 912 1557 122 2877 1238 354 804 . 76 . 1341 . 406 2407 389 . 262 262 603 832 2259 1520 Thermal 5728 | . . . . . . . . 74 . . . . 27 . 651 . . 1231 . . . . 252 294 1407 1792 Explosive 13051 | . . . . . . 534 . . . . . . 1478 . . . 1113 . . . 6218 514 . . 3194 . Electromagnetic 7934 | . . . . . 167 . . 132 . . . . . . . . . 1231 . 128 . . 884 . 4942 450 Impact . | . . . . . . . . . . . . . . . . . . . . . . . . . . . Slashing 165 | . . . . . . . . . . . . . . . . . . . . . . . . . 165 . Piercing . | . . . . . . . . . . . . . . . . . . . . . . . . . . . Highest Corruption 26 | . . . . . . 5 5 12 2 2 2 2 2 . . . . 12 12 5 7 7 1 1 19 26 Average Corruption 5 | . . . . . . 4 5 9 1 2 2 2 2 . . . . 7 5 5 5 7 1 1 4 19 Corruption Purged 7 | . . . . . . . . . . . . . . . . . . . 7 . . . . . . . Corruption Blocked . | . . . . . . . . . . . . . . . . . . . . . . . . . . . Effects 462 | . . . . . . 21 10 56 4 24 40 2 7 . . . . 78 31 40 5 19 9 6 48 62 Message Errors 111 | . . . . . . 1 2 14 . 4 15 1 1 . . . . 16 9 12 2 7 3 1 9 14 Matter Fused 109 | . . . . . . 10 2 14 . 3 7 . 4 . . . . 16 9 10 . 6 3 2 12 11 Heat Flow Errors 47 | . . . . . . 2 . 5 1 4 5 . 1 . . . . 10 3 5 2 . . 1 5 3 Energy Discharges 50 | . . . . . . . 2 9 . 3 1 1 . . . . . 9 4 4 . 3 1 . 7 6 Parts Rejected 2 | . . . . . . 1 . . 1 . . . . . . . . . . . . . . . . . Parts Fused 4 | . . . . . . . . . . . . . . . . . . . 1 . . . . . 1 2 Data Loss (minor) 56 | . . . . . . 2 1 4 1 6 5 . 1 . . . . 11 3 4 1 1 . 1 6 9 Data Loss (major) 25 | . . . . . . . 1 3 . 1 2 . . . . . . 4 . 5 . 1 2 . 1 5 Misfires 18 | . . . . . . 3 . 1 1 3 4 . . . . . . 4 . . . 1 . . . 1 Alerts 14 | . . . . . . 1 1 2 . . 1 . . . . . . 2 2 . . . . . 1 4 Misdirections 3 | . . . . . . . . . . . . . . . . . . . . . . . . . 1 2 Weapon Failures 23 | . . . . . . 1 1 4 . . . . . . . . . 6 . . . . . 1 5 5 Overload Shots . | . . . . . . . . . . . . . . . . . . . . . . . . . . . Overflow Damage 583 | . . . . . . . . . . . . . 12 . . . 6 95 . 1 51 . 30 . 288 100 Projectiles 206 | . . . . . . . . . . . . . 3 . . . . 72 . . . . 9 . 58 64 Explosions 377 | . . . . . . . . . . . . . 9 . . . 6 23 . 1 51 . 21 . 230 36 Melee . | . . . . . . . . . . . . . . . . . . . . . . . . . . . Knockbacks 35 | . . . . 2 . . . . . . . . . . . . . 4 1 . . 2 4 1 12 9 Impact 3 | . . . . 2 . . . . . . . . . . . . . . . . . . 1 . . . Kinetic 30 | . . . . . . . . . . . . . . . . . . 4 1 . . 2 2 1 12 8 Secondary 2 | . . . . . . . . . . . . . . . . . . . . . . . 1 . . 1 Self-Inflicted Damage 584 | . . . . . . . . . . . . . . . . . . 218 . . . . . . 214 152 Shots 10 | . . . . . . . . . . . . . . . . . . 3 . . . . . . 5 2 Rammed 16 | . . . . 1 4 . . . . . . . . . . . . 4 . . . . 4 . 3 . Targets Rammed 33 | . 3 8 . 6 4 . . . . . . . . . . . . 4 . . . . 4 . 4 . Kicked 16 | . 3 8 . 5 . . . . . . . . . . . . . . . . . . . . . . Crushed 1 | . . . . . . . . . . . . . . . . . . . . . . . . . 1 . Highest Temperature 545 | . 8 39 . 16 18 241 21 220 276 271 204 . 381 . . . 14 434 237 213 68 56 276 260 545 363 Average Temperature 85 | . 3 18 . 7 5 38 14 31 137 82 69 . 120 . . . 9 100 90 92 23 26 84 82 119 101 Received Heat Transfer 2940 | . 234 87 . 6 72 80 18 433 286 72 12 . 93 . . . 49 186 126 . 18 18 36 . 351 763 Effects 11 | . . . . . . . . . . . . . 4 . . . . 2 1 . . . . . 3 1 Shutdowns 3 | . . . . . . . . . . . . . 1 . . . . 1 . . . . . . 1 . Energy Bleed 3 | . . . . . . . . . . . . . . . . . . . 1 . . . . . 1 1 Interference 3 | . . . . . . . . . . . . . 3 . . . . . . . . . . . . . Damage (minor) 1 | . . . . . . . . . . . . . . . . . . 1 . . . . . . . . Damage (core) 1 | . . . . . . . . . . . . . . . . . . . . . . . . . 1 . Siege Activations 31 | . . . . . . . . . . . . . . . . . . 7 1 . . 1 6 . 10 6 Total Turns 386 | . . . . . . . . . . . . . . . . . . 82 11 . . 4 51 . 163 75 Longest Duration 67 | . . . . . . . . . . . . . . . . . . 24 11 . . 4 16 . 67 28 Martial Activations . | . . . . . . . . . . . . . . . . . . . . . . . . . . . Shielding Activations . | . . . . . . . . . . . . . . . . . . . . . . . . . . . Robots Disrupted 1 | . . . . . . . . . . . . . . . . . . . . . . . 1 . . . Combat Hostiles 1 | . . . . . . . . . . . . . . . . . . . . . . . 1 . . . Robots Corrupted 23 | . . . . . . . . 1 . . . . . . . . . 4 . . . . 5 . 13 . Combat Hostiles 22 | . . . . . . . . 1 . . . . . . . . . 4 . . . . 5 . 12 . Parts Fried 63 | . . . . . . . . . . . . . . . . . . 21 . 1 . . 8 . 32 1 Impact Corruptions 1 | . . . . . . . . . . . . . . . . . . . . . . . 1 . . . Robots Melted 1 | . . . . . . . . . . . . . . . 1 . . . . . . . . . . . Combat Hostiles 1 | . . . . . . . . . . . . . . . 1 . . . . . . . . . . . Parts Melted 6 | . . . . . 1 . . . . . . . . . 2 . . 1 . . . . . . . 2 Heat Transferred 4583 | . . . . . . . . 50 . . . . 37 . 888 . . 1622 . . . . 222 296 748 720 Parts Sabotaged 3 | . . . . . . . . . . . . . . . . . . . . . . . . . . 3 Parts Stolen . | . . . . . . . . . . . . . . . . . . . . . . . . . . . Parts Stripped . | . . . . . . . . . . . . . . . . . . . . . . . . . . . Power Chain Reactions 25 | . . . . . . . . 1 . . . . . . . . . 5 . 1 . . . . 15 3 Alert | -11 -10 -10 -10 -9 -8 -8 -8 -8 -7 -7 -7 -7 -6 -6 -6 -6 -6 -5 -5 -5 -5 -4 -4 -4 -4 -4 ------- Run | Yrd Mat Min Exi Min Mat Gar Mat Gar Fac Low Low Dat Pro Fac Was Fac DSF Fac Upp Upp War Pro Fac Was Fac Ext Maximum Alert Level 5 | . . . . . 1 4 2 5 3 . . . . 3 1 . 2 2 . . . . 1 . 5 4 Low Security (%) 51 | 100 100 100 . 100 57 6 . . . . . . . . 74 100 22 49 . . . . 95 100 12 . Level 1 13 | . . . . . 42 28 . 3 . . . . . . 25 . 37 40 . . . . 4 . 10 . Level 2 6 | . . . . . . 11 100 17 . . . . . . . . 39 10 . . . . . . 15 . Level 3 13 | . . . . . . 31 . 29 100 . . . . 100 . . . . . . . . . . 9 50 Level 4 9 | . . . . . . 22 . 25 . . . . . . . . . . . . . . . . 20 49 Level 5 3 | . . . . . . . . 23 . . . . . . . . . . . . . . . . 17 . High Security 1 | . . . . . . . . . . . . . . . . . . . . . . . . . 13 . Max Security . | . . . . . . . . . . . . . . . . . . . . . . . . . . . Sterilizations 1 | . . . . . . . . . . . . . . . . . 1 . . . . . . . . . Peak Influence 2656 | 10 156 53 . 30 276 1359 662 1898 1051 . . . . 980 326 . 445 638 . . . . 209 67 2656 1301 Initial 1301 | . . . . . 7 137 662 283 996 . . . . 980 325 . 1 222 . . . . . 67 . 1301 Average 439 | 1 29 5 . . 144 734 558 1096 893 . . . . 957 111 . 289 195 . . . . 98 5 1120 1114 Influence Increases 13409 | 20 446 168 . 30 564 1242 34 1685 342 20 35 . 270 900 2 2 534 1290 80 60 545 120 569 16 3630 805 Destroy 0b10 Robot/C 6680 | . 180 140 . 20 320 560 20 800 200 20 20 . 220 . . . 220 700 80 60 500 100 340 . 1640 540 Destroy 0b10 Robot/NC 455 | 20 55 5 . . 35 . . . . . . . 10 . . . . 35 . . 15 10 10 . 200 60 Destroy Leader 984 | . 50 20 . 10 98 30 10 40 50 . . . 40 . . . 30 184 . . . 10 102 . 278 32 Allied During Kill 969 | . . 3 . . . 19 . 6 . . . . . . . . 232 24 . . . . . . 628 57 Successful Hack 181 | . 39 . . . 19 14 4 28 14 . . . . . . 2 . 34 . . . . . . 27 . Select Force Hacks 60 | . 60 . . . . . . . . . . . . . . . . . . . . . . . . . Disable Machine 585 | . . . . . . 15 . 30 15 . . . . . . . 15 120 . . . . 60 . 315 15 Anti-Garrison Action 1250 | . . . . . . 500 . 600 . . . . . . . . . . . . . . . . 150 . Destroy Structure 940 | . 2 . . . 2 104 . 136 3 . . . . . 2 . 37 178 . . . . 42 16 362 56 Advance Influence 900 | . . . . . . . . . . . . . . 900 . . . . . . . . . . . . Partial Spotted 30 | . . . . . 15 . . . . . . . . . . . . . . . . . . . . 15 Lose Combat Pursuer 375 | . 60 . . . 75 . . 45 60 . 15 . . . . . . 15 . . 30 . 15 . 30 30 Influence Decreases 12347 | 20 446 168 . 9 374 94 957 223 1490 770 35 . 142 98 932 . 111 1082 675 98 74 591 375 210 974 2399 Entered New Map 5171 | . . . . . 14 74 697 153 902 278 . . . 48 605 . 1 203 235 8 . 471 . 127 . 1355 Time Decay 5188 | 20 300 158 . 9 360 . 110 . 398 492 33 . 132 50 327 . . 609 440 90 44 120 355 83 564 494 Lost Part 652 | . 30 10 . . . . . 50 40 . 2 . 10 . . . . 60 . . 30 . 10 . 150 260 Lost Ally 464 | . . . . . . 20 . 20 . . . . . . . . 110 54 . . . . 10 . 110 140 Purge Threat 872 | . 116 . . . . . 150 . 150 . . . . . . . . 156 . . . . . . 150 150 Squads Dispatched 61 | . 3 . . 1 1 . . . 9 . . . . . . . 2 12 . . . . 4 . 26 3 Investigation 6 | . 3 . . . . . . . 2 . . . . . . . . . . . . . . . 1 . Extermination 14 | . . . . . . . . . 2 . . . . . . . . 6 . . . . 3 . 3 . Reinforcement 19 | . . . . 1 1 . . . 1 . . . . . . . 2 4 . . . . 1 . 8 1 Assault 16 | . . . . . . . . . 1 . . . . . . . . . . . . . . . 13 2 Garrison 6 | . . . . . . . . . 3 . . . . . . . . 2 . . . . . . 1 . Intercept . | . . . . . . . . . . . . . . . . . . . . . . . . . . . Searches Triggered . | . . . . . . . . . . . . . . . . . . . . . . . . . . . Data Miner Redirects 4 | . . . . . . . . . . . . . . . . . . . . . . . . . 1 3 Construction Impeded 6 | . . . . 1 . . . . . . . . . . . . . 1 . . . . 1 . 2 1 Haulers Reinforced 4 | . . . . . . . . . . . . . . . . . . 2 . . . . . . 2 . Active Scanning Responses . | . . . . . . . . . . . . . . . . . . . . . . . . . . . Cargo Convoy Interrupts . | . . . . . . . . . . . . . . . . . . . . . . . . . . . Stealth | -11 -10 -10 -10 -9 -8 -8 -8 -8 -7 -7 -7 -7 -6 -6 -6 -6 -6 -5 -5 -5 -5 -4 -4 -4 -4 -4 --------- Run | Yrd Mat Min Exi Min Mat Gar Mat Gar Fac Low Low Dat Pro Fac Was Fac DSF Fac Upp Upp War Pro Fac Was Fac Ext Distress Signals 14 | . 2 . . . 3 . . . . . . . 1 . . . . 1 . . 1 . 1 . 4 1 Communications Jammed 182 | . . . . . . . . . . . . . . . . . . 41 . . 22 . . . 82 37 Distress Signals 172 | . . . . . . . . . . . . . . . . . . 31 . . 22 . . . 82 37 Times Spotted 440 | . 22 7 . 2 29 24 1 39 16 1 2 . 14 . 6 . 33 39 4 1 39 7 17 7 93 37 Peak Tracking Total 16 | . 4 3 . 1 6 5 1 7 5 1 1 . 6 . 3 . 11 5 4 3 16 3 4 3 10 11 Tactical Retreats 20 | . 3 . . . 4 . . 1 2 . 1 . . . . . . 1 . . 2 . 1 1 2 2 Traps | -11 -10 -10 -10 -9 -8 -8 -8 -8 -7 -7 -7 -7 -6 -6 -6 -6 -6 -5 -5 -5 -5 -4 -4 -4 -4 -4 ------- Run | Yrd Mat Min Exi Min Mat Gar Mat Gar Fac Low Low Dat Pro Fac Was Fac DSF Fac Upp Upp War Pro Fac Was Fac Ext Traps Triggered 31 | . 2 . . 2 . 5 . 7 3 . . . . 1 . . 1 3 . . . . 3 . 4 . Indirectly 2 | . . . . . . . . . . . . . . . . . . 1 . . . . 1 . . . Trap Hack Attempts . | . . . . . . . . . . . . . . . . . . . . . . . . . . . Triggered . | . . . . . . . . . . . . . . . . . . . . . . . . . . . Disarmed . | . . . . . . . . . . . . . . . . . . . . . . . . . . . Reprogrammed . | . . . . . . . . . . . . . . . . . . . . . . . . . . . Reused . | . . . . . . . . . . . . . . . . . . . . . . . . . . . Traps Extracted . | . . . . . . . . . . . . . . . . . . . . . . . . . . . Installed . | . . . . . . . . . . . . . . . . . . . . . . . . . . . Triggered . | . . . . . . . . . . . . . . . . . . . . . . . . . . . Machines | -11 -10 -10 -10 -9 -8 -8 -8 -8 -7 -7 -7 -7 -6 -6 -6 -6 -6 -5 -5 -5 -5 -4 -4 -4 -4 -4 ---------- Run | Yrd Mat Min Exi Min Mat Gar Mat Gar Fac Low Low Dat Pro Fac Was Fac DSF Fac Upp Upp War Pro Fac Was Fac Ext Machines Disabled 64 | . . 1 . . . 10 . 15 1 . 1 . . . . . 1 8 . . . . 4 . 22 1 Max in Single Turn 4 | . . 1 . . . 2 . 2 1 . 1 . . . . . . 4 . . . . 1 . 3 1 Garrison Access 3 | . . . . . . . . . . . . . . . . . . 1 . . . . . . 2 . Garrison Relay 17 | . . . . . . 8 . 9 . . . . . . . . . . . . . . . . . . Phase Generator 2 | . . . . . . 1 . 1 . . . . . . . . . . . . . . . . . . Machines Repaired . | . . . . . . . . . . . . . . . . . . . . . . . . . . . Machines Dismantled 3 | . . . . . . . . . . . . . . . . . . . . . . . . . 3 . Machines Sabotaged . | . . . . . . . . . . . . . . . . . . . . . . . . . . . Overloaded Fab Kills . | . . . . . . . . . . . . . . . . . . . . . . . . . . . Hacking | -11 -10 -10 -10 -9 -8 -8 -8 -8 -7 -7 -7 -7 -6 -6 -6 -6 -6 -5 -5 -5 -5 -4 -4 -4 -4 -4 --------- Run | Yrd Mat Min Exi Min Mat Gar Mat Gar Fac Low Low Dat Pro Fac Was Fac DSF Fac Upp Upp War Pro Fac Was Fac Ext Machines Accessed 64 | . 9 . 1 1 5 5 4 4 4 1 . 3 . 1 . 1 . 11 . . 3 . 1 . 7 3 Terminals 42 | . 7 . . . 2 5 2 4 4 . . . . 1 . 1 . 7 . . . . . . 6 3 Fabricators 3 | . . . . . . . . . . . . . . . . . . 2 . . . . 1 . . . Repair Stations 2 | . . . . . 1 . . . . . . . . . . . . 1 . . . . . . . . Recycling Units 2 | . 2 . . . . . . . . . . . . . . . . . . . . . . . . . Scanalyzers 2 | . . . . . 1 . 1 . . . . . . . . . . . . . . . . . . . Garrison Access 4 | . . . . . 1 . 1 . . . . . . . . . . 1 . . . . . . 1 . Total Hacks 164 | . 28 . 1 1 12 7 10 5 12 1 . 21 . 3 . 2 . 28 . . 10 . 1 . 17 5 Successful 98 | . 19 . 1 1 10 2 5 3 4 1 . 21 . 1 . 1 . 10 . . 10 . . . 6 3 Failed 64 | . 9 . . . 1 5 4 2 8 . . . . 2 . 1 . 18 . . . . 1 . 11 2 Catastrophic 13 | . . . . . . 2 1 . 1 . . . . . . . . 3 . . . . 1 . 3 2 Database Lockouts 2 | . . . . . 1 . 1 . . . . . . . . . . . . . . . . . . . Manual 63 | . 22 . . . 4 . 5 . 4 . . . . 2 . . . 14 . . 1 . 1 . 6 4 Terminals 108 | . 26 . . . 7 7 5 5 12 . . . . 3 . 2 . 20 . . . . . . 16 5 Fabricators 5 | . . . . . . . . . . . . . . . . . . 4 . . . . 1 . . . Repair Stations 4 | . . . . . 2 . . . . . . . . . . . . 2 . . . . . . . . Recycling Units 2 | . 2 . . . . . . . . . . . . . . . . . . . . . . . . . Scanalyzers 6 | . . . . . 2 . 4 . . . . . . . . . . . . . . . . . . . Garrison Access 5 | . . . . . 1 . 1 . . . . . . . . . . 2 . . . . . . 1 . Terminal Hacks 72 | . 11 . 1 1 2 2 1 3 3 1 . 21 . 1 . 1 . 7 . . 10 . . . 5 2 Record 7 | . . . 1 . . . . . . . . 6 . . . . . . . . . . . . . . Part Schematic 10 | . 2 . . . . . . . . . . 8 . . . . . . . . . . . . . . Robot Schematic 4 | . . . . . . . . . . . . 4 . . . . . . . . . . . . . . Prototype ID Bank 16 | . 1 . . . 1 . . . . . . 3 . . . . . 1 . . 9 . . . 1 . Open Door 4 | . . . . 1 . 1 . . . 1 . . . . . . . . . . 1 . . . . . Open DSF 1 | . . . . . . . . . . . . . . . . 1 . . . . . . . . . . Branch Access Points 5 | . 2 . . . . . . . 1 . . . . . . . . 1 . . . . . . 1 . Terminal Index 3 | . 1 . . . . . . . . . . . . . . . . 1 . . . . . . 1 . Alert Level 4 | . . . . . . . . . 1 . . . . 1 . . . 1 . . . . . . . 1 Unreport Threat 7 | . 1 . . . . . 1 . 1 . . . . . . . . 2 . . . . . . 1 1 Locate Traps 2 | . . . . . . . . . . . . . . . . . . 1 . . . . . . 1 . Transport Status 1 | . 1 . . . . . . . . . . . . . . . . . . . . . . . . . Recall Investigation 1 | . 1 . . . . . . . . . . . . . . . . . . . . . . . . . Hauler Manifests 1 | . 1 . . . . . . . . . . . . . . . . . . . . . . . . . Zone Layout 2 | . 1 . . . 1 . . . . . . . . . . . . . . . . . . . . . Garrison Registry 2 | . . . . . . 1 . 1 . . . . . . . . . . . . . . . . . . Patrol Navigation 1 | . . . . . . . . 1 . . . . . . . . . . . . . . . . . . Security Stations 1 | . . . . . . . . 1 . . . . . . . . . . . . . . . . . . Fabricator Hacks 1 | . . . . . . . . . . . . . . . . . . 1 . . . . . . . . Network Status 1 | . . . . . . . . . . . . . . . . . . 1 . . . . . . . . Repair Station Hacks 2 | . . . . . 2 . . . . . . . . . . . . . . . . . . . . . Scan Component 1 | . . . . . 1 . . . . . . . . . . . . . . . . . . . . . Repair 1 | . . . . . 1 . . . . . . . . . . . . . . . . . . . . . Recycling Unit Hacks . | . . . . . . . . . . . . . . . . . . . . . . . . . . . Scanalyzer 4 | . . . . . 1 . 3 . . . . . . . . . . . . . . . . . . . Retrieve Study 4 | . . . . . 1 . 3 . . . . . . . . . . . . . . . . . . . Garrison Access Hacks 4 | . . . . . 1 . 1 . . . . . . . . . . 1 . . . . . . 1 . Unlock Access 2 | . . . . . 1 . 1 . . . . . . . . . . . . . . . . . . . Seal Access 2 | . . . . . . . . . . . . . . . . . . 1 . . . . . . 1 . Unauthorized Hacks 15 | . 8 . . . 4 . . . 1 . . . . . . . . 1 . . . . . . . 1 Terminals 13 | . 6 . . . 4 . . . 1 . . . . . . . . 1 . . . . . . . 1 Track 2 | . . . . . 1 . . . . . . . . . . . . 1 . . . . . . . . Botnet 4 | . 1 . . . 1 . . . 1 . . . . . . . . . . . . . . . . 1 Operators 1 | . . . . . 1 . . . . . . . . . . . . . . . . . . . . . Skim 6 | . 5 . . . 1 . . . . . . . . . . . . . . . . . . . . . Fabricators . | . . . . . . . . . . . . . . . . . . . . . . . . . . . Repair Stations . | . . . . . . . . . . . . . . . . . . . . . . . . . . . Recycling Units 2 | . 2 . . . . . . . . . . . . . . . . . . . . . . . . . Tunnel 2 | . 2 . . . . . . . . . . . . . . . . . . . . . . . . . Scanalyzers . | . . . . . . . . . . . . . . . . . . . . . . . . . . . Garrison Access . | . . . . . . . . . . . . . . . . . . . . . . . . . . . Data Cores Recovered . | . . . . . . . . . . . . . . . . . . . . . . . . . . . Used . | . . . . . . . . . . . . . . . . . . . . . . . . . . . Hacking Detections 43 | . 5 . . . 4 4 2 3 4 . . . . 1 . . . 10 . . . . 1 . 6 3 Full Trace Events 1 | . . . . . . . . . . . . . . . . . . . . . . . . . 1 . Feedback Events . | . . . . . . . . . . . . . . . . . . . . . . . . . . . Feedback Blocked . | . . . . . . . . . . . . . . . . . . . . . . . . . . . Robot Schematics Acquired 4 | . . . . . . . . . . . . 4 . . . . . . . . . . . . . . Robots Built . | . . . . . . . . . . . . . . . . . . . . . . . . . . . Authchips . | . . . . . . . . . . . . . . . . . . . . . . . . . . . Time . | . . . . . . . . . . . . . . . . . . . . . . . . . . . Total Robot Build Rating . | . . . . . . . . . . . . . . . . . . . . . . . . . . . Part Schematics Acquired 10 | . 2 . . . . . . . . . . 8 . . . . . . . . . . . . . . Parts Built . | . . . . . . . . . . . . . . . . . . . . . . . . . . . Authchips . | . . . . . . . . . . . . . . . . . . . . . . . . . . . Time . | . . . . . . . . . . . . . . . . . . . . . . . . . . . Total Part Build Rating . | . . . . . . . . . . . . . . . . . . . . . . . . . . . Part Studies Acquired 3 | . . . . . 1 . 2 . . . . . . . . . . . . . . . . . . . Parts Repaired 1 | . . . . . 1 . . . . . . . . . . . . . . . . . . . . . Time 26 | . . . . . 26 . . . . . . . . . . . . . . . . . . . . . Parts Recycled . | . . . . . . . . . . . . . . . . . . . . . . . . . . . Recycled Matter . | . . . . . . . . . . . . . . . . . . . . . . . . . . . Retrieved Matter . | . . . . . . . . . . . . . . . . . . . . . . . . . . . Retrieved Components . | . . . . . . . . . . . . . . . . . . . . . . . . . . . Parts Scanalyzed . | . . . . . . . . . . . . . . . . . . . . . . . . . . . Part Schematics Acquired . | . . . . . . . . . . . . . . . . . . . . . . . . . . . Parts Damaged . | . . . . . . . . . . . . . . . . . . . . . . . . . . . Bothacking | -11 -10 -10 -10 -9 -8 -8 -8 -8 -7 -7 -7 -7 -6 -6 -6 -6 -6 -5 -5 -5 -5 -4 -4 -4 -4 -4 ------------ Run | Yrd Mat Min Exi Min Mat Gar Mat Gar Fac Low Low Dat Pro Fac Was Fac DSF Fac Upp Upp War Pro Fac Was Fac Ext Used RIF Installer . | . . . . . . . . . . . . . . . . . . . . . . . . . . . Robots Hacked . | . . . . . . . . . . . . . . . . . . . . . . . . . . . Non-combat . | . . . . . . . . . . . . . . . . . . . . . . . . . . . Combat . | . . . . . . . . . . . . . . . . . . . . . . . . . . . Robot Hacks Applied . | . . . . . . . . . . . . . . . . . . . . . . . . . . . Relay Couplers Released 74 | . . . . . . 32 . 37 . . . . . . . . . . . . . . 4 . 1 . Machine Destruction 70 | . . . . . . 32 . 37 . . . . . . . . . . . . . . . . 1 . Programmers 4 | . . . . . . . . . . . . . . . . . . . . . . . 4 . . . Fabnet Peak Effective % . | . . . . . . . . . . . . . . . . . . . . . . . . . . . Robots Rewired 10 | . . . . . . 2 . 1 . . . . . . . . . . . . . . . . . 7 Allies Hacked 1 | . . . . . . . . . . . . . . . . . . 1 . . . . . . . . Hacks Repelled . | . . . . . . . . . . . . . . . . . . . . . . . . . . . Allies | -11 -10 -10 -10 -9 -8 -8 -8 -8 -7 -7 -7 -7 -6 -6 -6 -6 -6 -5 -5 -5 -5 -4 -4 -4 -4 -4 -------- Run | Yrd Mat Min Exi Min Mat Gar Mat Gar Fac Low Low Dat Pro Fac Was Fac DSF Fac Upp Upp War Pro Fac Was Fac Ext Total Allies 48 | . . 1 . . . 2 . 1 . . . . . . 18 . . . . . . . . 18 . 8 Largest Group 18 | . . 1 . . . 2 . 1 . . . . . . 18 14 14 6 . . . . . 18 15 8 Highest-Rated Group 656 | . . 31 . . . 64 . 21 . . . . . . 638 479 479 218 . . . . . 656 531 356 Highest-Rated Ally 51 | . . 31 . . . 39 . 21 . . . . . . 50 46 46 46 . . . . . 50 46 51 Initial Warlord ECA Mod 35 | . . . . . . . 13 13 27 27 27 27 26 26 26 26 26 35 35 35 35 34 34 34 34 34 Total Orders 2 | . . . . . . . . . . . . . . . . . . . . . . . 2 . . . EXPLORE 2 | . . . . . . . . . . . . . . . . . . . . . . . 2 . . . Ally Attacks 362 | . . 7 . . . 23 . 8 . . . . . . . . 130 21 . . . . . . 130 43 Total Damage 7141 | . . 86 . . . 260 . 146 . . . . . . . . 2452 526 . . . . . . 2596 1075 Kills 78 | . . 2 . . . 2 . 3 . . . . . . . . 32 4 . . . . . . 28 7 Allies Corrupted 5 | . . . . . . . . . . . . . . . . . 1 4 . . . . . . . . Allies Melted 1 | . . . . . . . . . . . . . . . . . . . . . 1 . . . . . Intel | -11 -10 -10 -10 -9 -8 -8 -8 -8 -7 -7 -7 -7 -6 -6 -6 -6 -6 -5 -5 -5 -5 -4 -4 -4 -4 -4 ------- Run | Yrd Mat Min Exi Min Mat Gar Mat Gar Fac Low Low Dat Pro Fac Was Fac DSF Fac Upp Upp War Pro Fac Was Fac Ext Active Infowar (turns) 25477 | 14 1114 1521 398 1341 892 36 102 163 670 2198 2608 174 410 . . . . 2706 1090 1691 1443 575 1831 1097 2266 1137 Sensors 16816 | . . . . . . . . . 412 2198 2608 174 410 . . . . 1730 1090 1691 1405 . 1664 1095 1537 802 Terrain 1617 | . . . . . . . . 2 . . . . . . . . . . . . . . 983 261 371 . Seismic 5837 | 14 1114 1521 398 1341 892 36 102 161 258 . . . . . . . . . . . . . . . . . Cloaking 2 | . . . . . . . . . . . . . . . . . . . . . 1 . 1 . . . Jamming 13726 | . . . . . . . . . . . . . . . . . . 2598 1088 1691 1443 575 1831 1097 2266 1137 ECM 3 | . . . . . . . . . . . . . . . . . . . . 2 . . . . 1 . Robot Analysis Total . | . . . . . . . . . . . . . . . . . . . . . . . . . . . Derelict Logs Recovered 9 | . . 2 . 1 . . . . . 2 3 . . . . . . . 1 . . . . . . . Drone Launches 2 | . . . . . . . . . . . . . . . . . . . . . . . 2 . . . Drone Recoveries 1 | . . . . . . . . . . . . . . . . . . . . . . . 1 . . . Exploration | -11 -10 -10 -10 -9 -8 -8 -8 -8 -7 -7 -7 -7 -6 -6 -6 -6 -6 -5 -5 -5 -5 -4 -4 -4 -4 -4 ------------- Run | Yrd Mat Min Exi Min Mat Gar Mat Gar Fac Low Low Dat Pro Fac Was Fac DSF Fac Upp Upp War Pro Fac Was Fac Ext Turns Passed 31922 | 144 1412 1521 398 1704 1160 1552 231 1783 949 2199 2613 174 576 106 1025 20 201 2854 1090 1691 1443 575 1831 1097 2266 1307 Spaces Moved 12734 | 81 579 753 176 639 484 641 110 683 321 1044 1017 78 230 48 427 13 85 1058 444 700 769 220 617 341 663 513 Core 87 | 8 . . . . . . . . . . . . . . . . . . . . . . . . . 79 Treads 10549 | . . . . 122 484 641 110 683 321 1044 1017 78 230 48 427 13 85 1058 444 700 769 220 617 341 663 434 Legs 2098 | 73 579 753 176 517 . . . . . . . . . . . . . . . . . . . . . . Wheels . | . . . . . . . . . . . . . . . . . . . . . . . . . . . Hover . | . . . . . . . . . . . . . . . . . . . . . . . . . . . Flight . | . . . . . . . . . . . . . . . . . . . . . . . . . . . Fastest Speed 50 | 50 120 190 190 240 160 200 200 200 206 206 206 218 218 218 160 160 160 160 240 160 160 160 232 240 160 50 Average Speed 208 | 123 143 190 225 256 177 200 200 200 206 206 217 218 218 218 165 160 186 214 240 239 169 206 239 244 244 196 Slowest Speed 320 | 190 190 190 260 260 200 200 200 240 206 206 218 218 218 218 238 160 240 240 240 240 240 240 240 245 320 240 Overloaded Moves . | . . . . . . . . . . . . . . . . . . . . . . . . . . . Propulsion Burnouts . | . . . . . . . . . . . . . . . . . . . . . . . . . . . Robots Hopped . | . . . . . . . . . . . . . . . . . . . . . . . . . . . Potential Cave-ins 2 | . . . . . . . . . . . . . . . . . . . . . 2 . . . . . Cave-ins Triggered 1 | . . . . . . . . . . . . . . . . . . . . . 1 . . . . . Exploration Rate (%) 57 | 5 93 97 56 75 44 70 14 91 12 99 97 68 48 2 96 1 73 36 54 84 84 40 24 96 22 61 Regions Visited 26 Branch Regions 12 Pre-discovered Areas 10 | . 2 2 1 1 . . . . . 1 2 1 . . . . . . . . . . . . . . Known Exits Taken 11 | . 1 . . . 1 . 1 . 1 1 1 1 1 . . 1 . 1 . . . . . . 1 . Unknown Exits Taken 8 | 1 . 1 1 1 . . . . . . . . . . . . . . 1 1 1 1 . . . . Scrap Searched 17 | . . 1 . . . . . . . 2 5 . 3 . . . . . 3 2 . 1 . . . . Spaces Dug 118 | . . . . . . . . 18 . . 2 . 45 . 1 . . 27 . . 1 . 7 3 14 . Terrain Destroyed 1093 | . . . . . . 101 . 191 1 1 2 . 161 . 4 . 42 121 10 . 132 37 19 10 235 26 Melee . | . . . . . . . . . . . . . . . . . . . . . . . . . . . Projectile 224 | . . . . . . . . 2 1 1 2 . 2 . 4 . . 87 10 . 3 1 19 10 68 14 AOE 869 | . . . . . . 101 . 189 . . . . 159 . . . 42 34 . . 129 36 . . 167 12 Terrain Rammed . | . . . . . . . . . . . . . . . . . . . . . . . . . . . Walls Destroyed . | . . . . . . . . . . . . . . . . . . . . . . . . . . . Machines Disabled . | . . . . . . . . . . . . . . . . . . . . . . . . . . . Actions | -11 -10 -10 -10 -9 -8 -8 -8 -8 -7 -7 -7 -7 -6 -6 -6 -6 -6 -5 -5 -5 -5 -4 -4 -4 -4 -4 --------- Run | Yrd Mat Min Exi Min Mat Gar Mat Gar Fac Low Low Dat Pro Fac Was Fac DSF Fac Upp Upp War Pro Fac Was Fac Ext Total 16439 | 101 1021 806 179 677 702 814 116 907 541 1067 1375 83 262 51 635 12 105 1455 457 709 887 323 893 529 1048 684 Wait 1886 | . 355 13 . 9 87 41 . 39 153 . 325 . . . 84 . . 174 7 . 16 90 174 123 145 51 Move 12712 | 80 578 752 175 638 484 640 110 682 320 1043 1016 77 229 48 426 12 84 1057 443 699 768 219 617 340 662 513 Hop . | . . . . . . . . . . . . . . . . . . . . . . . . . . . Pick Up 153 | 4 6 8 2 5 25 4 . 5 10 3 2 . . . 8 . 2 19 . 1 13 1 9 4 11 11 Fast Attach 113 | 7 4 1 . . 6 1 . 6 4 . 3 3 2 . 6 . . 15 . 3 13 . 12 5 10 12 Attach 71 | . . 1 . 3 5 1 . 4 6 . 1 . 1 2 . . . 6 . . 7 2 4 1 16 11 Detach 10 | . . . . . 1 . . 1 . . . . . . . . . . . . 4 . . . 2 2 Swap 165 | . 2 2 1 5 13 19 2 20 5 4 3 . 2 1 11 . 1 32 2 2 6 . 8 6 10 8 Drop 202 | . 3 3 1 1 26 11 1 15 9 5 4 3 2 . 17 . 2 30 . 2 27 1 14 12 9 4 Fire 1010 | 10 70 18 . 10 51 67 3 116 32 12 21 . 26 . 83 . 13 118 5 2 33 10 51 38 152 69 Melee . | . . . . . . . . . . . . . . . . . . . . . . . . . . . Ram . | . . . . . . . . . . . . . . . . . . . . . . . . . . . Kick 16 | . 3 8 . 5 . . . . . . . . . . . . . . . . . . . . . . Crush 17 | . . . . 1 4 . . . . . . . . . . . . 4 . . . . 4 . 4 . Escape Stasis 23 | . . . . . . 6 . 12 2 . . . . . . . 3 . . . . . . . . . Rewire 34 | . . . . . . 24 . 7 . . . . . . . . . . . . . . . . . 3 Trap . | . . . . . . . . . . . . . . . . . . . . . . . . . . . Miscellaneous 27 | . . . . . . . . . . . . . . . . . . . . . . . . . 27 . Route ------- -11/Scrapyard -10/Materials (discovered 6 exits: *Mat x3 / *Min x2 / Sub) -10/Mines (discovered 3 exits: *Mat x2 / *Exi) -10/Exiles -9/Mines -8/Materials (discovered 4 exits: *Fac x3 / Gar) -8/Garrison (discovered 4 exits: *Mat x4) -8/Materials (discovered 2 exits: Fac / Gar) -8/Garrison (discovered 3 exits: *Fac x3) -7/Factory (discovered 4 exits: Sto x2 / *Low x2) -7/Lower Caves -7/Lower Caves (discovered 2 exits: *Fac / *Dat) -7/Data Miner -6/Proximity Caves -6/Factory -6/Waste -6/Factory -6/DSF -5/Factory (discovered 2 exits: *Upp x2) -5/Upper Caves -5/Upper Caves (discovered 2 exits: *Fac / *War) -5/Warlord -4/Proximity Caves -4/Factory (discovered 3 exits: *Res / *Upp / Ext) -4/Waste -4/Factory (discovered 6 exits: *Res x2 / Upp x2 / *Ext x2) -4/Extension History --------- Turn | Location | Event 6 | -11/Scrapyard | Discovered new exit (range 15) 145 | -11/Scrapyard | Entered Materials 145 | -10/Materials | Discovered new exit (range 7) 284 | -10/Materials | Discovered new exit (range 10) 304 | -10/Materials | Build established: Mutant 386 | -10/Materials | Discovered new exit (range 15) 587 | -10/Materials | Discovered new exit (range 5) 645 | -10/Materials | Identified exit to Mines 883 | -10/Materials | Identified exit to Subcaves 883 | -10/Materials | Identified exit to Materials 883 | -10/Materials | Learned location of 1 exit from Materials 936 | -10/Materials | Build established: Scavenger-Mutant 939 | -10/Materials | Learned Storage stockpile data 984 | -10/Materials | Learned location of 2 exits from Subcaves 1021 | -10/Materials | Learned 4 Recycling zone layouts 1085 | -10/Materials | Learned 2 Storage zone layouts 1135 | -10/Materials | Learned location of 3 exits from Materials 1557 | -10/Materials | Entered Mines 1580 | -10/Mines | Core integrity fell below 50% 2108 | -10/Mines | Deemed a non-threat by the Exiles lab entrance 2108 | -10/Mines | Discovered new exit (range 5) 2175 | -10/Mines | Learned location of Zion (-6) 2182 | -10/Mines | Received a Rocket Launcher from a helpful Derelict 2316 | -10/Mines | Received a Mining Laser from a helpful Derelict 2473 | -10/Mines | Build established: Mutant 3078 | -10/Mines | Entered Exiles 3124 | -10/Exiles | Met 8R-AWN 3156 | -10/Exiles | Met EX-HEX 3279 | -10/Exiles | Met EX-DEC 3440 | -10/Exiles | Discovered new exit (range 14) 3476 | -10/Exiles | Entered Mines 3940 | -9/Mines | Learned location of Storage (-7) 4088 | -9/Mines | Met a Derelict who couldn't figure out how to use a Trap Extractor 4103 | -9/Mines | Learned Materials terminal intel 4554 | -9/Mines | YI-UF0 nonchalantly dropped a Grenade Launcher on the ground 4638 | -9/Mines | Discovered new exit (range 9) 4861 | -9/Mines | Core integrity fell below 20% 4897 | -9/Mines | Lost 3 parts (1p2w) 5180 | -9/Mines | Entered Materials 5180 | -8/Materials | Evolved 4 slots: Propulsion x1, Utility x2, Weapon x1 5181 | -8/Materials | Identified exit to Factory 5182 | -8/Materials | Loaded intel: 11 terminal locations 5217 | -8/Materials | Repaired Lgt. Treads 5356 | -8/Materials | Central database locked down 5499 | -8/Materials | Build established: Scavenger-Tank 6340 | -8/Materials | Identified exit to Garrison 6340 | -8/Materials | Entered Garrison 6405 | -8/Garrison | Triggered checkpoint 6438 | -8/Garrison | Garrison Relay disabled 6810 | -8/Garrison | Triggered checkpoint 6824 | -8/Garrison | Triggered checkpoint 6975 | -8/Garrison | P-60 Hacker assimilated allied AA-3VT(h) 7039 | -8/Garrison | Garrison Relay disabled 7052 | -8/Garrison | Garrison Relay disabled 7054 | -8/Garrison | Garrison Relay disabled 7107 | -8/Garrison | Discovered new exit (range 10) 7131 | -8/Garrison | Triggered checkpoint 7172 | -8/Garrison | Discovered new exit (range 6) 7240 | -8/Garrison | Triggered checkpoint 7273 | -8/Garrison | Garrison Relay disabled 7332 | -8/Garrison | Discovered new exit (range 66) 7332 | -8/Garrison | Discovered new exit (range 12) 7332 | -8/Garrison | Discovered new exit (range 41) 7332 | -8/Garrison | Discovered new exit (range 20) 7396 | -8/Garrison | Triggered checkpoint 7512 | -8/Garrison | Garrison Relay disabled 7570 | -8/Garrison | Phase Generator disabled 7684 | -8/Garrison | Triggered checkpoint 7892 | -8/Garrison | Entered Materials 8083 | -8/Materials | Central database locked down 8123 | -8/Materials | Identified exit to Garrison 8123 | -8/Materials | Entered Garrison 8184 | -8/Garrison | Phase Generator disabled 8391 | -8/Garrison | Triggered checkpoint 8408 | -8/Garrison | Garrison Relay disabled 8579 | -8/Garrison | Triggered checkpoint 8666 | -8/Garrison | Spotted B-75 Beast 8719 | -8/Garrison | Triggered checkpoint 8795 | -8/Garrison | Discovered exit to Factory (range 14) 8990 | -8/Garrison | Garrison Relay disabled 9024 | -8/Garrison | Garrison Relay disabled 9260 | -8/Garrison | Discovered exit to Factory (range 10) 9327 | -8/Garrison | Triggered checkpoint 9359 | -8/Garrison | Learned Factory security intel 9411 | -8/Garrison | Garrison Relay disabled 9430 | -8/Garrison | Garrison Relay disabled 9433 | -8/Garrison | System corruption reached 10% 9486 | -8/Garrison | Garrison Relay disabled 9486 | -8/Garrison | Garrison Relay disabled 9488 | -8/Garrison | Garrison Relay disabled 9639 | -8/Garrison | Triggered checkpoint 9807 | -8/Garrison | Discovered exit to Factory (range 17) 9807 | -8/Garrison | Discovered exit to Factory (range 66) 9807 | -8/Garrison | Discovered exit to Factory (range 85) 9831 | -8/Garrison | Triggered checkpoint 9906 | -8/Garrison | Entered Factory 9906 | -7/Factory | Evolved 2 slots: Propulsion x1, Utility x1 10167 | -7/Factory | Identified exit to Storage 10167 | -7/Factory | Identified exit to Lower Caves 10219 | -7/Factory | Garrison activated, responded to threat 10629 | -7/Factory | Build established: Scavenger-Skirmisher 10706 | -7/Factory | First assault squad dispatched 10817 | -7/Factory | Lost 3 parts (2n1u) 10855 | -7/Factory | Entered Lower Caves 10881 | -7/Lower Caves | Met a Warlord Commander 10882 | -7/Lower Caves | Learned location of Warlord (-5) 10883 | -7/Lower Caves | Warlord Commander delivered Encrypted Comm Array 10895 | -7/Lower Caves | Found Encrypted Comm Array 10916 | -7/Lower Caves | Attracted the attention of an 0b10 checkpoint 11201 | -7/Lower Caves | Encountered a Warlord checkpoint 11221 | -7/Lower Caves | Learned Factory terminal intel 13030 | -7/Lower Caves | Discovered new exit (range 4) 13038 | -7/Lower Caves | Identified exit to Lower Caves 13054 | -7/Lower Caves | Entered another Lower Caves area 13132 | -7/Lower Caves | Discovered new exit (range 14) 13152 | -7/Lower Caves | Encountered a Warlord checkpoint 13178 | -7/Lower Caves | Identified exit to Factory 13468 | -7/Lower Caves | Build established: Skirmisher 13976 | -7/Lower Caves | Learned location of Extension (-4) 14148 | -7/Lower Caves | Attracted the attention of an 0b10 checkpoint 14203 | -7/Lower Caves | Spotted B-75 Beast 14772 | -7/Lower Caves | Acquired the password to a Derelict Tinkerer's latest research 15257 | -7/Lower Caves | Discovered new exit (range 16) 15581 | -7/Lower Caves | Identified exit to Data Miner 15667 | -7/Lower Caves | Entered Data Miner 15667 | -7/Data Miner | Discovered new exit (range 6) 15676 | -7/Data Miner | Identified exit to Proximity Caves 15710 | -7/Data Miner | Met Data Miner 15752 | -7/Data Miner | Acquired the access code to Warlord's prototype stash 15752 | -7/Data Miner | Learned location of Section 7 (-2) 15780 | -7/Data Miner | Received God Mode back door access code from Data Miner 15841 | -7/Data Miner | Entered Proximity Caves 15934 | -6/Proximity Caves | Spotter reported a threat 16065 | -6/Proximity Caves | Spotter reported a threat 16106 | -6/Proximity Caves | Spotter reported a threat 16118 | -6/Proximity Caves | Spotter reported a threat 16173 | -6/Proximity Caves | Spotter reported a threat 16302 | -6/Proximity Caves | Spotter reported a threat 16391 | -6/Proximity Caves | Discovered exit to Factory (range 8) 16417 | -6/Proximity Caves | Entered Factory 16417 | -6/Factory | Evolved 2 slots: Utility x2 16418 | -6/Factory | Loaded intel: 26 terminal locations 16523 | -6/Factory | Sucked down chute 16523 | -6/Factory | Entered Waste 16558 | -6/Waste | Spotted C-40 Crusher 16561 | -6/Waste | Spotted C-40 Crusher 16562 | -6/Waste | Spotted C-40 Crusher 16568 | -6/Waste | Destroyed C-40 Crusher 16574 | -6/Waste | Destroyed C-40 Crusher 16612 | -6/Waste | Spotted C-40 Crusher 16655 | -6/Waste | Spotted C-40 Crusher 16658 | -6/Waste | Destroyed C-40 Crusher 16665 | -6/Waste | Spotted C-40 Crusher 16708 | -6/Waste | Destroyed C-40 Crusher 16743 | -6/Waste | Destroyed C-40 Crusher 16798 | -6/Waste | Destroyed C-40 Crusher 16811 | -6/Waste | Build established: Hacker-Tank 17013 | -6/Waste | Discovered new exit (range 16) 17041 | -6/Waste | Warlord forces began an assault 17209 | -6/Waste | Identified exit to Factory 17548 | -6/Waste | Entered Factory 17548 | -6/Factory | Accompanied by 14 allies 17550 | -6/Factory | Lost 3 allies 17568 | -6/Factory | Identified exit to DSF 17568 | -6/Factory | Entered DSF 17568 | -6/DSF | Accompanied by 14 allies 17578 | -6/DSF | Assembled infested the area 17595 | -6/DSF | Additional patrols routed to DSF 17607 | -6/DSF | Discovered new exit (range 12) 17669 | -6/DSF | Lost 6 allies 17715 | -6/DSF | Sterilization system engaged 17725 | -6/DSF | Destroyed 16 combat bots 17735 | -6/DSF | Ambient heat levels rising (+10) 17750 | -6/DSF | Ambient heat levels rising (+10) 17765 | -6/DSF | Ambient heat levels rising (+10) 17767 | -6/DSF | Identified exit to Factory 17769 | -6/DSF | Entered Factory 17769 | -5/Factory | Accompanied by 6 allies 17769 | -5/Factory | Evolved 2 slots: Power x1, Utility x1 17770 | -5/Factory | Identified exit to Upper Caves 18142 | -5/Factory | Lost 4 allies 19566 | -5/Factory | Build established: Tank 19584 | -5/Factory | Allied Derelicts emerged from ambush trap array 19639 | -5/Factory | Spotted B-75 Beast 19810 | -5/Factory | System corruption reached 10% 20131 | -5/Factory | Build established: Scavenger-Tank 20521 | -5/Factory | Garrison activated, responded to threat 20534 | -5/Factory | Destroyed 7 combat bots 20623 | -5/Factory | Entered Upper Caves 20931 | -5/Upper Caves | Build established: Tank 20965 | -5/Upper Caves | Learned 8 Factory zone layouts 21286 | -5/Upper Caves | Discovered new exit (range 5) 21713 | -5/Upper Caves | Entered another Upper Caves area 21807 | -5/Upper Caves | Discovered new exit (range 5) 22507 | -5/Upper Caves | Build established: Infiltrator-Tank 23049 | -5/Upper Caves | Discovered new exit (range 12) 23404 | -5/Upper Caves | Entered Warlord 23464 | -5/Warlord | System corruption cleaned by Quarantine Array 23705 | -5/Warlord | Build established: Scavenger-Tank 23871 | -5/Warlord | Found Prototype Special Weapon 23871 | -5/Warlord | Identified RU-N14's Throwing Claymores v3 23883 | -5/Warlord | Found RU-N14's Throwing Claymores v3 24131 | -5/Warlord | Opened Warlord's prototype stash 24139 | -5/Warlord | Found Prototype Device 24139 | -5/Warlord | Identified System Purifier 24153 | -5/Warlord | Found Prototype Device 24153 | -5/Warlord | Identified Exp. Cloaking Device 24286 | -5/Warlord | Met Warlord 24311 | -5/Warlord | Warlord's base attacked by MAIN.C 24369 | -5/Warlord | Found Prototype Energy Cannon 24369 | -5/Warlord | Identified Vortex Driver 24521 | -5/Warlord | Found Prototype Reactor 24546 | -5/Warlord | Found Prototype Processor 24546 | -5/Warlord | Identified Exp. Core Analyzer 24661 | -5/Warlord | Warlord forces counterattacked 24680 | -5/Warlord | Spotted Striker 24692 | -5/Warlord | Destroyed B-86 Titan 24713 | -5/Warlord | Destroyed 8 combat bots 24747 | -5/Warlord | Spotted Executioner 24753 | -5/Warlord | Destroyed Executioner 24814 | -5/Warlord | Crushed by falling debris 24815 | -5/Warlord | Destroyed 12 combat bots 24824 | -5/Warlord | Spotted Executioner 24828 | -5/Warlord | Discovered new exit (range 14) 24845 | -5/Warlord | Lost 3 parts (1p2u) 24847 | -5/Warlord | Entered Proximity Caves 24870 | -4/Proximity Caves | Lost 23 allies 24989 | -4/Proximity Caves | Attracted the attention of an 0b10 checkpoint 25123 | -4/Proximity Caves | Build established: Tank 25166 | -4/Proximity Caves | Discovered new exit (range 11) 25309 | -4/Proximity Caves | Received a Behemoth hack from an annoying Tinkerer 25422 | -4/Proximity Caves | Entered Factory 25422 | -4/Factory | Evolved 2 slots: Utility x1, Weapon x1 25423 | -4/Factory | Identified exit to Extension 25793 | -4/Factory | Discovered new exit (range 14) 25824 | -4/Factory | Identified exit to Upper Caves 26556 | -4/Factory | Build established: Skirmisher 26694 | -4/Factory | Discovered new exit (range 36) 27253 | -4/Factory | Sucked down chute 27253 | -4/Factory | Entered Waste 27382 | -4/Waste | Spotted C-40 Crusher 27384 | -4/Waste | Destroyed C-40 Crusher 27397 | -4/Waste | Spotted C-40 Crusher 27463 | -4/Waste | Spotted C-40 Crusher 27477 | -4/Waste | Destroyed C-40 Crusher 27498 | -4/Waste | Spotted C-40 Crusher 27520 | -4/Waste | Spotted C-40 Crusher 27552 | -4/Waste | Destroyed C-40 Crusher 27575 | -4/Waste | Destroyed C-40 Crusher 27635 | -4/Waste | Destroyed C-40 Crusher 27709 | -4/Waste | Spotted C-40 Crusher 27775 | -4/Waste | Destroyed C-40 Crusher 27798 | -4/Waste | Build established: Tank 28021 | -4/Waste | Discovered new exit (range 13) 28065 | -4/Waste | Warlord forces began an assault 28263 | -4/Waste | Identified exit to Factory 28350 | -4/Waste | Entered Factory 28350 | -4/Factory | Accompanied by 15 allies 28873 | -4/Factory | Lost 3 allies 28928 | -4/Factory | Lost 3 allies 29087 | -4/Factory | Discovered new exit (range 11) 29100 | -4/Factory | First assault squad dispatched 29165 | -4/Factory | P-70 Sage assimilated allied DP-ODB(m) 29329 | -4/Factory | Discovered new exit (range 6) 29342 | -4/Factory | Identified exit to Research 29410 | -4/Factory | P-70 Sage assimilated allied AY-8UH(g) 29873 | -4/Factory | Incoming assault squad redirected 29926 | -4/Factory | Lost 4 parts (3u1w) 29940 | -4/Factory | Destroyed 7 combat bots 30228 | -4/Factory | Build established: Scavenger-Tank 30279 | -4/Factory | Garrison activated, responded to threat 30299 | -4/Factory | High security lockdown imminent 30335 | -4/Factory | Destroyed 14 combat bots 30335 | -4/Factory | Lost 6 parts (1n3u2w) 30379 | -4/Factory | High security lockdown engaged 30416 | -4/Factory | System corruption reached 10% 30442 | -4/Factory | Destroyed 10 combat bots 30446 | -4/Factory | Lost 4 parts (1p1n1u1w) 30616 | -4/Factory | Entered Extension 30783 | -4/Extension | Lost 7 parts (2p2u3w) 31216 | -4/Extension | Disrupted transfer network 31366 | -4/Extension | First assault squad dispatched 31390 | -4/Extension | Incoming assault squad redirected 31398 | -4/Extension | Rescued a captive Derelict 31633 | -4/Extension | Incoming assault squad redirected 31763 | -4/Extension | P-70 Sage assimilated allied BI-KYL(b) 31764 | -4/Extension | Incoming assault squad redirected 31789 | -4/Extension | Lost 5 allies 31801 | -4/Extension | Spotted B-86 Titan 31820 | -4/Extension | Destroyed B-86 Titan 31865 | -4/Extension | Spotted B-86 Titan 31884 | -4/Extension | Released all parts (8) 31885 | -4/Extension | Core integrity fell below 50% 31899 | -4/Extension | Rescued a captive Derelict 31902 | -4/Extension | Rescued a captive Derelict 31915 | -4/Extension | Lost 15 parts (2p2n7u4w) 31915 | -4/Extension | Core integrity fell below 20% 31923 | -4/Extension | Destroyed by S-27 Virus with Autogun Last Messages --------------- 31884_ Released Flexi-carbon Leg. 31884_ Flexi-carbon Leg crushed and broken. 31884_ Released Dispersion Rifle. 31884_ Dispersion Rifle crushed and broken. 31885_ Penetrated by Slug. 31887_ Y-64 Sentinel suffers critical hit (Destroy). 31887_ Slug penetrates A-15 Conveyor. 31887_ Slug penetrates Wall. 31888_ Acquired 62 matter. 31888_ Penetrated by Slug. 31888_ Slug penetrates Machine. 31888_ Penetrated by Slug. 31892_ Slug penetrates Wall. 31895_ B-86 Titan activates siege mode. 31897_ System corrupted: Matter fused (-6). Door Terminal flashes as you approach. 31899_ S3-OC6(l): "Free at last!" 31909_ Slug penetrates Door. 31914_ ONOKB6RHTLC=YKHHH8UG Map ----- +----------------------------------------------------+ | | | | | | | | | | | | | | | | | ?????????????????????????????????????????????????? | | ?????????????????????????????????????????????????? | | ?????????????????????????????????????????????????? | | ?????????????????????????????????????????????????? | | ?????????????????????????????????????????????????? | | ?????????????????????????????????????????????????? | | ?????????????????????????????????????????????????? | | ?????????????????????????????????????????????????? | | ?????????????????????????????????????????????????? | | ?????????????????????????????????????????????????? | | #?????????????????????????????????????????????? | | +????????????????????????????????? ??????????? | | ! #???????################???????? ??????????? | | ??????????? ??????? ?????????? | | ????????###### #?????? ?????????? | | ????????# s #???? #????????? | | ######### ss ### #????????? | | Ts @/ #????????? | | ######### s ### #????????? | | ????????# ###########???? #????????? | | ????????#######????????????????#########?????????? | | ?????????????????????????????????????????????????? | | ?????????????????????????????????????????????????? | | ?????????????????????????????????????????????????? | | ?????????????????????????????????????????????????? | | ?????????????????????????????????????????????????? | | ?????????????????????????????????????????????????? | | ?????????????????????????????????????????????????? | | ?????????????????????????????????????????????????? | | ?????????????????????????????????????????????????? | | ?????????????????????????????????????????????????? | | ?????????????????????????????????????????????????? | | ?????????????????????????????????????????????????? | | ?????????????????????????????????????????????????? | | ?????????????????????????????????????????????????? | | ?????????????????????????????????????????????????? | | ?????????????????????????????????????????????????? | | ?????????????????????????????????????????????????? | | ??????????????????????????????????????????????? | | ???????????????????????????????????????????????? | | ??????????????????????????????????????????????? | | ?????????????????????????????????????????????? | +----------------------------------------------------+ Best States ------------- Heat Dissipation 119 Energy Generation 37 Energy Capacity 550 Matter Stores 300 Matter Capacity 500 Sight Range 16 Robot Scan Range 16 Terrain Scan Range 24 Terrain Scan Density 10 Jamming Range 14 Additional Mass Support 9 Armor Coverage 1200 Weapon Cycling 15 Evasion (%) 55 Targeting Accuracy 8 Core Analysis 8 Recoil Reduction 4 Offensive Hacking 22 Defensive Hacking 10 Item Schematics ----------------- Hcp. Storage Unit | -10/Materials | Hacked Huge Storage Unit | -10/Materials | Hacked Combat Drone Bay | -7/Data Miner | Free Lgt. Regenerative Plating | -7/Data Miner | Free Cld. Cesium-ion Thruster | -7/Data Miner | Free Exp. Propulsion Shielding | -7/Data Miner | Free Antimatter Cannon | -7/Data Miner | Free Linear Gravjet | -7/Data Miner | Free Adv. Field Recycling Unit | -7/Data Miner | Free Variable Charge Gun | -7/Data Miner | Free Robot Schematics ------------------ B-60 Warrior | -7/Data Miner | Free M-22 Extractor | -7/Data Miner | Free M-28 Smith | -7/Data Miner | Free O-24 Administrator | -7/Data Miner | Free Fabricated ------------ Nothing Repaired ---------- Lgt. Treads | 3% | -8/Materials Studied --------- Lgt. Treads | -8/Materials | Hacked Minigun | -8/Materials | Hacked EM Pulse Cannon | -8/Materials | Hacked Alien Tech Used ----------------- None Achievements -------------- Hot Goods Let Me Out Of Here Window Shopping Challenges ------------ None Game ------ Seed FusionEtherialMantle Manual? 0 Play Time 03:07:04 Cumulative 328.3 hours Start 2025.10.25 @ 16:10:55 End 2025.10.25 @ 21:10:08 Sessions 1 Manual Loads 0 Difficulty Rogue Special Mode None Game No. 236 Rogue 236 Adventurer 0 Explorer 0 Win Type - Total 20 Types 9/0/6/1/1/0/1/1/0/1 Lore% 82 Gallery% 76 Achievement% 55 Wizard Run 0 Options --------- Layout 1 ASCII 0 Keyboard 0 Movement Mouse Keybinds 0 Fullscreen 2 Font 24/Smallcaps Map View 50x35 Zoom Use 0% Tactical HUD 1 Map Filters NONE Filters NONE Steam 1 RUN: 37afd413-da6d-4c23-b1f1-275582590dec